[Event "Titled Tuesday Blitz October 25 Late 2022"]
[White "Abdyzhapar, Asylbek"]
[Black "Coelho, Ramyres Santana"]
[WhiteFideId "13800337"]
[BlackFideId "2120690"]
[WhiteElo "2323"]
[BlackElo "1888"]
[Result "1-0"]
[Round "02"]
[TimeControl "180+1"]
[Date "2022.10.26"]
[WhiteClock "0:00:17"]
[BlackClock "0:00:03"]

1. e4 {[%clk 0:03:00]}  c5 {[%clk 0:02:59]} 2. Nf3 {[%clk 0:03:00]}  d6 {[%clk 0:02:57]} 3. d4 {[%clk 0:03:00]}  cxd4 {[%clk 0:02:57]} 4. Nxd4 {[%clk 0:03:01]}  Nf6 {[%clk 0:02:58]} 5. Nc3 {[%clk 0:03:01]}  a6 {[%clk 0:02:58]} 6. Be2 {[%clk 0:03:00]}  e6 {[%clk 0:02:58]} 7. g4 {[%clk 0:02:57]}  b5 {[%clk 0:02:55]} 8. g5 {[%clk 0:02:56]}  Nfd7 {[%clk 0:02:54]} 9. Be3 {[%clk 0:02:52]}  Bb7 {[%clk 0:02:54]} 10. a3 {[%clk 0:02:51]}  Be7 {[%clk 0:02:54]} 11. h4 {[%clk 0:02:49]}  Nc6 {[%clk 0:02:52]} 12. Rg1 {[%clk 0:02:44]}  Rc8 {[%clk 0:02:49]} 13. Nxc6 {[%clk 0:02:43]}  Bxc6 {[%clk 0:02:49]} 14. h5 {[%clk 0:02:41]}  Ne5 {[%clk 0:02:47]} 15. f4 {[%clk 0:02:38]}  Nc4 {[%clk 0:02:47]} 16. Bxc4 {[%clk 0:02:38]}  bxc4 {[%clk 0:02:48]} 17. g6 {[%clk 0:02:31]}  hxg6 {[%clk 0:02:49]} 18. hxg6 {[%clk 0:02:31]}  Bf6 {[%clk 0:02:42]} 19. Qg4 {[%clk 0:02:27]}  Qe7 {[%clk 0:02:21]} 20. O-O-O {[%clk 0:02:23]}  Bxc3 {[%clk 0:02:16]} 21. bxc3 {[%clk 0:02:23]}  Bxe4 {[%clk 0:02:15]} 22. gxf7+ {[%clk 0:02:20]}  Qxf7 {[%clk 0:02:14]} 23. Rxd6 {[%clk 0:02:17]}  Bf5 {[%clk 0:02:09]} 24. Qxg7 {[%clk 0:02:00]}  Qxg7 {[%clk 0:02:07]} 25. Rxg7 {[%clk 0:01:59]}  Rh1+ {[%clk 0:02:08]} 26. Rg1 {[%clk 0:01:50]}  Rxg1+ {[%clk 0:02:06]} 27. Bxg1 {[%clk 0:01:50]}  a5 {[%clk 0:01:38]} 28. Ra6 {[%clk 0:01:49]}  Kd7 {[%clk 0:01:22]} 29. Ra7+ {[%clk 0:01:41]}  Kd6 {[%clk 0:01:20]} 30. Rxa5 {[%clk 0:01:34]}  Rg8 {[%clk 0:01:20]} 31. Bc5+ {[%clk 0:01:34]}  Kc6 {[%clk 0:01:17]} 32. Bd4 {[%clk 0:01:34]}  Rg2 {[%clk 0:01:15]} 33. Rc5+ {[%clk 0:01:33]}  Kd6 {[%clk 0:01:15]} 34. Rxc4 {[%clk 0:01:33]}  Rxc2+ {[%clk 0:01:15]} 35. Kd1 {[%clk 0:01:33]}  Ra2 {[%clk 0:01:13]} 36. Rc8 {[%clk 0:01:27]}  Kd5 {[%clk 0:01:07]} 37. Ra8 {[%clk 0:01:22]}  Kc4 {[%clk 0:01:01]} 38. Ke1 {[%clk 0:01:19]}  Be4 {[%clk 0:00:55]} 39. Ra6 {[%clk 0:01:17]}  Bd5 {[%clk 0:00:50]} 40. a4 {[%clk 0:01:15]}  Kd3 {[%clk 0:00:49]} 41. a5 {[%clk 0:01:11]}  Ke4 {[%clk 0:00:39]} 42. Ra7 {[%clk 0:00:59]}  Kxf4 {[%clk 0:00:28]} 43. a6 {[%clk 0:00:56]}  e5 {[%clk 0:00:16]} 44. Bc5 {[%clk 0:00:54]}  e4 {[%clk 0:00:11]} 45. Rd7 {[%clk 0:00:49]}  Bc4 {[%clk 0:00:09]} 46. a7 {[%clk 0:00:45]}  Ra1+ {[%clk 0:00:09]} 47. Kd2 {[%clk 0:00:38]}  Ra2+ {[%clk 0:00:06]} 48. Kc1 {[%clk 0:00:38]}  Kf3 {[%clk 0:00:04]} 49. Re7 {[%clk 0:00:35]}  Bd3 {[%clk 0:00:02]} 50. Re8 {[%clk 0:00:26]}  Ke2 {[%clk 0:00:02]} 51. a8=Q {[%clk 0:00:19]}  Rc2+ {[%clk 0:00:02]} 52. Kb1 {[%clk 0:00:20]}  Rxc3+ {[%clk 0:00:01]} 53. Ka1 {[%clk 0:00:20]}  Rc1+ {[%clk 0:00:01]} 54. Kb2 {[%clk 0:00:20]}  Rb1+ {[%clk 0:00:01]} 55. Kc3 {[%clk 0:00:20]}  Rc1+ {[%clk 0:00:02]} 56. Kd4 {[%clk 0:00:20]}  Rc2 {[%clk 0:00:02]} 57. Rxe4+ {[%clk 0:00:18]}  Bxe4 {[%clk 0:00:02]} 58. Qxe4+ {[%clk 0:00:18]}  Kd2 {[%clk 0:00:02]} 59. Qd3+ {[%clk 0:00:17]}  Kc1 {[%clk 0:00:03]} 60. Ba3+ {[%clk 0:00:17]}  Kb1 {[%clk 0:00:03]} 61. Qb3+ {[%clk 0:00:17]}  Ka1 {[%clk 0:00:02]} 62. Qa4 {[%clk 0:00:17]}  Rc4+ {[%clk 0:00:03]} 63. Qxc4 {[%clk 0:00:15]}  Kb1 {[%clk 0:00:02]} 64. Qb3+ {[%clk 0:00:16]}  Ka1 {[%clk 0:00:03]} 65. Qb2# {[%clk 0:00:17]} 1-0


[Site "https://www.chess.com"]

[Event "Titled Tuesday Blitz October 25 Late 2022"]
[White "Ali Abdullahi, Farah"]
[Black "Mekhane, Adam"]
[WhiteFideId "16100212"]
[BlackFideId "36050601"]
[WhiteElo "2223"]
[BlackElo "2175"]
[Result "0-1"]
[Round "02"]
[TimeControl "180+1"]
[Date "2022.10.26"]
[WhiteClock "0:01:24"]
[BlackClock "0:01:40"]

1. d4 {[%clk 0:03:00]}  Nf6 {[%clk 0:02:59]} 2. Nf3 {[%clk 0:03:00]}  g6 {[%clk 0:02:59]} 3. c4 {[%clk 0:03:00]}  Bg7 {[%clk 0:02:59]} 4. Nc3 {[%clk 0:03:01]}  O-O {[%clk 0:02:59]} 5. Bg5 {[%clk 0:03:01]}  d6 {[%clk 0:02:58]} 6. Bxf6 {[%clk 0:03:00]}  Bxf6 {[%clk 0:02:57]} 7. e3 {[%clk 0:03:01]}  c5 {[%clk 0:02:55]} 8. d5 {[%clk 0:02:59]}  b5 {[%clk 0:02:51]} 9. cxb5 {[%clk 0:02:56]}  a6 {[%clk 0:02:51]} 10. bxa6 {[%clk 0:02:55]}  Qa5 {[%clk 0:02:47]} 11. Rc1 {[%clk 0:02:53]}  Bxa6 {[%clk 0:02:43]} 12. Bxa6 {[%clk 0:02:52]}  Nxa6 {[%clk 0:02:43]} 13. O-O {[%clk 0:02:52]}  Bxc3 {[%clk 0:02:41]} 14. bxc3 {[%clk 0:02:42]}  Qxa2 {[%clk 0:02:41]} 15. e4 {[%clk 0:02:42]}  Nc7 {[%clk 0:02:39]} 16. c4 {[%clk 0:02:38]}  Rfb8 {[%clk 0:02:35]} 17. e5 {[%clk 0:02:38]}  Rb2 {[%clk 0:02:21]} 18. exd6 {[%clk 0:02:37]}  exd6 {[%clk 0:02:21]} 19. Qd3 {[%clk 0:02:28]}  Ne8 {[%clk 0:02:12]} 20. Qe3 {[%clk 0:02:28]}  Re2 {[%clk 0:02:02]} 21. Qh6 {[%clk 0:02:27]}  Nf6 {[%clk 0:01:55]} 22. Qf4 {[%clk 0:02:25]}  Ne4 {[%clk 0:01:52]} 23. Qh6 {[%clk 0:01:51]}  Rxf2 {[%clk 0:01:44]} 24. Ng5 {[%clk 0:01:42]}  Rxg2+ {[%clk 0:01:41]} 25. Kh1 {[%clk 0:01:42]}  Rxg5 {[%clk 0:01:41]} 26. Qh3 {[%clk 0:01:31]}  Ng3+ {[%clk 0:01:39]} 27. hxg3 {[%clk 0:01:27]}  Rh5 {[%clk 0:01:40]} 28. Qxh5 {[%clk 0:01:24]}  gxh5 {[%clk 0:01:40]} 0-1


[Site "https://www.chess.com"]

[Event "Titled Tuesday Blitz October 25 Late 2022"]
[White "Almedina Ortiz, Edgardo J."]
[Black "Sokolovsky, Yahli"]
[WhiteFideId "3100197"]
[BlackFideId "2820242"]
[WhiteElo "2217"]
[BlackElo "2316"]
[Result "0-1"]
[Round "02"]
[TimeControl "180+1"]
[Date "2022.10.26"]
[WhiteClock "0:00:22"]
[BlackClock "0:01:35"]

1. d4 {[%clk 0:03:00]}  d6 {[%clk 0:03:00]} 2. e4 {[%clk 0:02:57]}  g6 {[%clk 0:02:59]} 3. Nc3 {[%clk 0:02:55]}  Bg7 {[%clk 0:03:00]} 4. f4 {[%clk 0:02:55]}  Nc6 {[%clk 0:02:58]} 5. Be3 {[%clk 0:02:40]}  Nf6 {[%clk 0:02:57]} 6. Nf3 {[%clk 0:02:37]}  Ng4 {[%clk 0:02:56]} 7. Bg1 {[%clk 0:02:34]}  h5 {[%clk 0:02:56]} 8. h3 {[%clk 0:02:27]}  Nh6 {[%clk 0:02:56]} 9. Qd2 {[%clk 0:02:22]}  e6 {[%clk 0:02:41]} 10. O-O-O {[%clk 0:02:16]}  Ne7 {[%clk 0:02:42]} 11. Bf2 {[%clk 0:02:00]}  d5 {[%clk 0:02:39]} 12. e5 {[%clk 0:01:45]}  Nef5 {[%clk 0:02:39]} 13. g3 {[%clk 0:01:02]}  Bd7 {[%clk 0:02:32]} 14. Rg1 {[%clk 0:01:00]}  Ne7 {[%clk 0:02:31]} 15. g4 {[%clk 0:00:58]}  hxg4 {[%clk 0:02:32]} 16. hxg4 {[%clk 0:00:58]}  Rb8 {[%clk 0:02:19]} 17. Bh4 {[%clk 0:00:59]}  b5 {[%clk 0:02:17]} 18. Bf6 {[%clk 0:00:59]}  Kf8 {[%clk 0:02:08]} 19. Ne2 {[%clk 0:00:56]}  b4 {[%clk 0:02:04]} 20. Ng3 {[%clk 0:00:55]}  Nxg4 {[%clk 0:02:01]} 21. Bxg7+ {[%clk 0:00:49]}  Kxg7 {[%clk 0:02:02]} 22. Ng5 {[%clk 0:00:43]}  Nf5 {[%clk 0:01:52]} 23. Nxf5+ {[%clk 0:00:38]}  exf5 {[%clk 0:01:53]} 24. Be2 {[%clk 0:00:35]}  Rh2 {[%clk 0:01:54]} 25. Rde1 {[%clk 0:00:32]}  Bb5 {[%clk 0:01:53]} 26. Qd1 {[%clk 0:00:31]}  Nf2 {[%clk 0:01:40]} 27. Qd2 {[%clk 0:00:30]}  Ne4 {[%clk 0:01:40]} 28. Qd1 {[%clk 0:00:28]}  Nxg5 {[%clk 0:01:36]} 29. Rxg5 {[%clk 0:00:27]}  Bxe2 {[%clk 0:01:34]} 30. Rxe2 {[%clk 0:00:28]}  Qh8 {[%clk 0:01:34]} 31. Rxh2 {[%clk 0:00:25]}  Qxh2 {[%clk 0:01:35]} 32. Qd3 {[%clk 0:00:22]}  Qxf4+ {[%clk 0:01:35]} 0-1


[Site "https://www.chess.com"]

[Event "Titled Tuesday Blitz October 25 Late 2022"]
[White "Ardila, Oscar Humberto"]
[Black "Gritsenko, Nikolai"]
[WhiteFideId "4404742"]
[BlackFideId "14112493"]
[WhiteElo "1898"]
[BlackElo "2389"]
[Result "0-1"]
[Round "02"]
[TimeControl "180+1"]
[Date "2022.10.26"]
[WhiteClock "0:00:05"]
[BlackClock "0:00:12"]

1. d4 {[%clk 0:02:59]}  d5 {[%clk 0:02:59]} 2. c4 {[%clk 0:03:00]}  Nc6 {[%clk 0:02:59]} 3. Nf3 {[%clk 0:02:58]}  Bg4 {[%clk 0:02:58]} 4. c5 {[%clk 0:02:54]}  Bxf3 {[%clk 0:02:54]} 5. gxf3 {[%clk 0:02:53]}  e5 {[%clk 0:02:54]} 6. dxe5 {[%clk 0:02:51]}  Bxc5 {[%clk 0:02:52]} 7. Bf4 {[%clk 0:02:43]}  Nge7 {[%clk 0:02:51]} 8. Qc2 {[%clk 0:02:40]}  Bb4+ {[%clk 0:02:39]} 9. Nd2 {[%clk 0:02:39]}  Ng6 {[%clk 0:02:37]} 10. Bg3 {[%clk 0:02:39]}  Ngxe5 {[%clk 0:02:25]} 11. O-O-O {[%clk 0:02:40]}  O-O {[%clk 0:02:20]} 12. a3 {[%clk 0:02:37]}  Bd6 {[%clk 0:02:01]} 13. Nb3 {[%clk 0:02:30]}  Ne7 {[%clk 0:01:56]} 14. Rg1 {[%clk 0:02:23]}  N5g6 {[%clk 0:01:51]} 15. e3 {[%clk 0:02:16]}  c6 {[%clk 0:01:49]} 16. Bd3 {[%clk 0:02:15]}  Rc8 {[%clk 0:01:40]} 17. h4 {[%clk 0:02:15]}  Bxg3 {[%clk 0:01:24]} 18. Rxg3 {[%clk 0:02:14]}  c5 {[%clk 0:01:22]} 19. Bxg6 {[%clk 0:02:14]}  hxg6 {[%clk 0:01:16]} 20. h5 {[%clk 0:02:11]}  Nf5 {[%clk 0:00:54]} 21. Rh3 {[%clk 0:02:08]}  d4 {[%clk 0:00:49]} 22. hxg6 {[%clk 0:02:00]}  Qf6 {[%clk 0:00:32]} 23. gxf7+ {[%clk 0:01:56]}  Rxf7 {[%clk 0:00:30]} 24. Rdh1 {[%clk 0:01:46]}  Nh6 {[%clk 0:00:28]} 25. exd4 {[%clk 0:01:43]}  c4 {[%clk 0:00:25]} 26. Nc5 {[%clk 0:01:35]}  Qxd4 {[%clk 0:00:24]} 27. Ne6 {[%clk 0:01:27]}  Qf6 {[%clk 0:00:20]} 28. Re1 {[%clk 0:00:58]}  c3 {[%clk 0:00:19]} 29. b4 {[%clk 0:00:49]}  Re8 {[%clk 0:00:19]} 30. Qb3 {[%clk 0:00:42]}  b5 {[%clk 0:00:19]} 31. Rg3 {[%clk 0:00:35]}  c2 {[%clk 0:00:18]} 32. Kxc2 {[%clk 0:00:29]}  Kh8 {[%clk 0:00:18]} 33. Rh3 {[%clk 0:00:12]}  Rfe7 {[%clk 0:00:17]} 34. Rxh6+ {[%clk 0:00:09]}  gxh6 {[%clk 0:00:16]} 35. Rh1 {[%clk 0:00:08]}  Rxe6 {[%clk 0:00:16]} 36. Qd3 {[%clk 0:00:06]}  Re2+ {[%clk 0:00:15]} 37. Kc1 {[%clk 0:00:06]}  Qa1+ {[%clk 0:00:13]} 38. Qb1 {[%clk 0:00:07]}  Qc3+ {[%clk 0:00:12]} 39. Kd1 {[%clk 0:00:05]}  Qd2# {[%clk 0:00:12]} 0-1


[Site "https://www.chess.com"]

[Event "Titled Tuesday Blitz October 25 Late 2022"]
[White "Ashiku, Franc"]
[Black "Gedgafov, Chamal"]
[WhiteFideId "4700066"]
[BlackFideId "34130621"]
[WhiteElo "2306"]
[BlackElo "2067"]
[Result "0-1"]
[Round "02"]
[TimeControl "180+1"]
[Date "2022.10.26"]
[WhiteClock "0:00:07"]
[BlackClock "0:00:57"]

1. d4 {[%clk 0:02:58]}  d5 {[%clk 0:02:59]} 2. c4 {[%clk 0:02:56]}  c5 {[%clk 0:03:00]} 3. Nf3 {[%clk 0:02:50]}  Nf6 {[%clk 0:02:59]} 4. cxd5 {[%clk 0:02:40]}  cxd4 {[%clk 0:02:56]} 5. Qa4+ {[%clk 0:02:37]}  Qd7 {[%clk 0:02:54]} 6. Qxd7+ {[%clk 0:02:28]}  Bxd7 {[%clk 0:02:52]} 7. Nxd4 {[%clk 0:02:25]}  Nxd5 {[%clk 0:02:52]} 8. a3 {[%clk 0:02:23]}  Nc6 {[%clk 0:02:50]} 9. Nxc6 {[%clk 0:02:13]}  Bxc6 {[%clk 0:02:50]} 10. e4 {[%clk 0:02:12]}  Nc7 {[%clk 0:02:43]} 11. Nc3 {[%clk 0:02:10]}  e5 {[%clk 0:02:41]} 12. Be3 {[%clk 0:02:05]}  Ne6 {[%clk 0:02:38]} 13. f3 {[%clk 0:01:45]}  Bc5 {[%clk 0:02:37]} 14. Bxc5 {[%clk 0:01:39]}  Nxc5 {[%clk 0:02:36]} 15. O-O-O {[%clk 0:01:16]}  Nb3+ {[%clk 0:02:35]} 16. Kb1 {[%clk 0:01:11]}  Nd4 {[%clk 0:02:36]} 17. Ne2 {[%clk 0:01:10]}  Nxe2 {[%clk 0:02:34]} 18. Bxe2 {[%clk 0:01:11]}  Ke7 {[%clk 0:02:35]} 19. b4 {[%clk 0:01:07]}  Rhd8 {[%clk 0:02:32]} 20. Kb2 {[%clk 0:01:06]}  Ba4 {[%clk 0:02:30]} 21. Rxd8 {[%clk 0:01:03]}  Rxd8 {[%clk 0:02:31]} 22. Re1 {[%clk 0:00:49]}  Rd2+ {[%clk 0:02:29]} 23. Kc3 {[%clk 0:00:45]}  Rc2+ {[%clk 0:02:27]} 24. Kd3 {[%clk 0:00:45]}  Ra2 {[%clk 0:02:28]} 25. Kc4 {[%clk 0:00:41]}  a6 {[%clk 0:02:12]} 26. Kc5 {[%clk 0:00:22]}  Kd7 {[%clk 0:02:00]} 27. Kb6 {[%clk 0:00:17]}  Kc8 {[%clk 0:02:00]} 28. Bc4 {[%clk 0:00:15]}  Rc2 {[%clk 0:01:46]} 29. Bd5 {[%clk 0:00:07]}  Kb8 {[%clk 0:01:44]} 30. h4 {[%clk 0:00:05]}  Rc7 {[%clk 0:01:39]} 31. h5 {[%clk 0:00:04]}  h6 {[%clk 0:01:39]} 32. Re3 {[%clk 0:00:03]}  Bc6 {[%clk 0:01:39]} 33. Bc4 {[%clk 0:00:03]}  Bd7 {[%clk 0:01:35]} 34. Bd5 {[%clk 0:00:03]}  Bc6 {[%clk 0:01:36]} 35. Bxc6 {[%clk 0:00:02]}  Rxc6+ {[%clk 0:01:35]} 36. Ka5 {[%clk 0:00:03]}  Rc2 {[%clk 0:01:35]} 37. Ka4 {[%clk 0:00:03]}  Ka7 {[%clk 0:01:30]} 38. Rd3 {[%clk 0:00:02]}  Rxg2 {[%clk 0:01:27]} 39. Rd7 {[%clk 0:00:02]}  Rg5 {[%clk 0:01:20]} 40. b5 {[%clk 0:00:02]}  axb5+ {[%clk 0:01:19]} 41. Kxb5 {[%clk 0:00:03]}  Rxh5 {[%clk 0:01:19]} 42. Rxf7 {[%clk 0:00:04]}  Rg5 {[%clk 0:01:16]} 43. Kc5 {[%clk 0:00:04]}  h5 {[%clk 0:01:16]} 44. Kd5 {[%clk 0:00:05]}  Rg3 {[%clk 0:01:05]} 45. Kxe5 {[%clk 0:00:05]}  h4 {[%clk 0:01:05]} 46. f4 {[%clk 0:00:04]}  h3 {[%clk 0:01:04]} 47. Rf8 {[%clk 0:00:05]}  Rg6 {[%clk 0:01:03]} 48. Rh8 {[%clk 0:00:05]}  Rh6 {[%clk 0:01:03]} 49. Rxh6 {[%clk 0:00:06]}  gxh6 {[%clk 0:01:04]} 50. f5 {[%clk 0:00:06]}  h2 {[%clk 0:01:05]} 51. f6 {[%clk 0:00:07]}  h1=Q {[%clk 0:01:04]} 52. f7 {[%clk 0:00:08]}  Qa1+ {[%clk 0:00:57]} 53. Ke6 {[%clk 0:00:08]}  Qg7 {[%clk 0:00:57]} 54. Ke7 {[%clk 0:00:08]}  Qe5+ {[%clk 0:00:57]} 55. Kf8 {[%clk 0:00:07]}  Qxe4 {[%clk 0:00:57]} 0-1


[Site "https://www.chess.com"]

[Event "Titled Tuesday Blitz October 25 Late 2022"]
[White "Averjanov, Alexey"]
[Black "Bruha, Nicholas"]
[WhiteFideId "14109867"]
[BlackFideId "30938988"]
[WhiteElo "2682"]
[BlackElo "2182"]
[Result "0-1"]
[Round "02"]
[TimeControl "180+1"]
[Date "2022.10.26"]
[WhiteClock "0:00:01"]
[BlackClock "0:00:37"]

1. d4 {[%clk 0:03:00]}  Nf6 {[%clk 0:03:00]} 2. c4 {[%clk 0:02:59]}  b6 {[%clk 0:03:00]} 3. Nf3 {[%clk 0:02:59]}  Bb7 {[%clk 0:03:00]} 4. Nbd2 {[%clk 0:03:00]}  g6 {[%clk 0:02:58]} 5. g3 {[%clk 0:02:59]}  Bg7 {[%clk 0:02:58]} 6. Bg2 {[%clk 0:02:59]}  O-O {[%clk 0:02:59]} 7. b3 {[%clk 0:02:59]}  c5 {[%clk 0:02:58]} 8. O-O {[%clk 0:02:57]}  cxd4 {[%clk 0:02:57]} 9. Nxd4 {[%clk 0:02:57]}  Bxg2 {[%clk 0:02:57]} 10. Kxg2 {[%clk 0:02:58]}  Qc7 {[%clk 0:02:55]} 11. Bb2 {[%clk 0:02:58]}  Nc6 {[%clk 0:02:55]} 12. Nxc6 {[%clk 0:02:56]}  dxc6 {[%clk 0:02:51]} 13. Qc2 {[%clk 0:02:56]}  Rad8 {[%clk 0:02:51]} 14. Rad1 {[%clk 0:02:55]}  c5 {[%clk 0:02:51]} 15. Nf3 {[%clk 0:02:44]}  Qc6 {[%clk 0:02:51]} 16. Rxd8 {[%clk 0:02:41]}  Rxd8 {[%clk 0:02:51]} 17. Rd1 {[%clk 0:02:42]}  Rxd1 {[%clk 0:02:45]} 18. Qxd1 {[%clk 0:02:43]}  Qd7 {[%clk 0:02:46]} 19. Qxd7 {[%clk 0:02:39]}  Nxd7 {[%clk 0:02:46]} 20. Bxg7 {[%clk 0:02:38]}  Kxg7 {[%clk 0:02:47]} 21. Kf1 {[%clk 0:02:36]}  e5 {[%clk 0:02:44]} 22. e3 {[%clk 0:02:29]}  Kf6 {[%clk 0:02:42]} 23. Ke2 {[%clk 0:02:28]}  h6 {[%clk 0:02:42]} 24. h4 {[%clk 0:02:21]}  Ke6 {[%clk 0:02:41]} 25. Nd2 {[%clk 0:02:20]}  Nf6 {[%clk 0:02:39]} 26. f3 {[%clk 0:02:16]}  h5 {[%clk 0:02:39]} 27. Nb1 {[%clk 0:02:15]}  e4 {[%clk 0:02:37]} 28. Nc3 {[%clk 0:02:09]}  exf3+ {[%clk 0:02:37]} 29. Kxf3 {[%clk 0:02:10]}  a6 {[%clk 0:02:38]} 30. Kf4 {[%clk 0:01:50]}  Nd7 {[%clk 0:02:34]} 31. a4 {[%clk 0:01:43]}  Ne5 {[%clk 0:02:23]} 32. Nd5 {[%clk 0:01:30]}  Nd3+ {[%clk 0:02:12]} 33. Ke4 {[%clk 0:01:25]}  Nc1 {[%clk 0:02:13]} 34. Nxb6 {[%clk 0:01:24]}  Nxb3 {[%clk 0:02:13]} 35. Nd5 {[%clk 0:01:21]}  Nd2+ {[%clk 0:02:10]} 36. Kd3 {[%clk 0:01:01]}  Nf1 {[%clk 0:02:11]} 37. Nc7+ {[%clk 0:01:01]}  Kd6 {[%clk 0:02:11]} 38. Nxa6 {[%clk 0:01:01]}  Nxg3 {[%clk 0:02:11]} 39. e4 {[%clk 0:00:50]}  f5 {[%clk 0:01:59]} 40. exf5 {[%clk 0:00:43]}  Nxf5 {[%clk 0:01:58]} 41. a5 {[%clk 0:00:38]}  Nxh4 {[%clk 0:01:55]} 42. Ke3 {[%clk 0:00:25]}  Nf5+ {[%clk 0:01:49]} 43. Kf4 {[%clk 0:00:23]}  Ne7 {[%clk 0:01:35]} 44. Nb8 {[%clk 0:00:17]}  Kc7 {[%clk 0:01:28]} 45. Na6+ {[%clk 0:00:17]}  Kc6 {[%clk 0:01:27]} 46. Nb8+ {[%clk 0:00:17]}  Kd6 {[%clk 0:01:13]} 47. a6 {[%clk 0:00:16]}  Nc6 {[%clk 0:01:12]} 48. a7 {[%clk 0:00:10]}  Nxa7 {[%clk 0:01:13]} 49. Kg5 {[%clk 0:00:10]}  Nc6 {[%clk 0:01:09]} 50. Na6 {[%clk 0:00:09]}  Ne5 {[%clk 0:01:07]} 51. Nb8 {[%clk 0:00:05]}  Nxc4 {[%clk 0:01:00]} 52. Na6 {[%clk 0:00:05]}  h4 {[%clk 0:01:01]} 53. Kxh4 {[%clk 0:00:04]}  Ne5 {[%clk 0:00:55]} 54. Kg5 {[%clk 0:00:04]}  Kd5 {[%clk 0:00:55]} 55. Nc7+ {[%clk 0:00:04]}  Kd4 {[%clk 0:00:56]} 56. Ne6+ {[%clk 0:00:04]}  Kd5 {[%clk 0:00:56]} 57. Nf4+ {[%clk 0:00:04]}  Ke4 {[%clk 0:00:55]} 58. Ne2 {[%clk 0:00:03]}  c4 {[%clk 0:00:55]} 59. Nc3+ {[%clk 0:00:03]}  Kd3 {[%clk 0:00:55]} 60. Nd5 {[%clk 0:00:02]}  Kd4 {[%clk 0:00:52]} 61. Nb4 {[%clk 0:00:01]}  c3 {[%clk 0:00:52]} 62. Kf6 {[%clk 0:00:01]}  Ke4 {[%clk 0:00:39]} 63. Nc2 {[%clk 0:00:01]}  Kf4 {[%clk 0:00:37]} 0-1


[Site "https://www.chess.com"]

[Event "Titled Tuesday Blitz October 25 Late 2022"]
[White "Babazada, Khazar"]
[Black "Runets, Ivan"]
[WhiteFideId "13413554"]
[BlackFideId "13511564"]
[WhiteElo "2367"]
[BlackElo "2076"]
[Result "1-0"]
[Round "02"]
[TimeControl "180+1"]
[Date "2022.10.26"]
[WhiteClock "0:00:22"]
[BlackClock "0:00:08"]

1. c4 {[%clk 0:03:00]}  Nf6 {[%clk 0:02:58]} 2. b3 {[%clk 0:02:57]}  g6 {[%clk 0:02:58]} 3. Bb2 {[%clk 0:02:55]}  Bg7 {[%clk 0:02:58]} 4. Nf3 {[%clk 0:02:56]}  O-O {[%clk 0:02:58]} 5. e3 {[%clk 0:02:56]}  b6 {[%clk 0:02:57]} 6. Be2 {[%clk 0:02:56]}  Bb7 {[%clk 0:02:58]} 7. O-O {[%clk 0:02:56]}  d5 {[%clk 0:02:56]} 8. cxd5 {[%clk 0:02:52]}  Nxd5 {[%clk 0:02:57]} 9. Bxg7 {[%clk 0:02:53]}  Kxg7 {[%clk 0:02:58]} 10. Qc2 {[%clk 0:02:53]}  c5 {[%clk 0:02:57]} 11. Nc3 {[%clk 0:02:53]}  Nd7 {[%clk 0:02:57]} 12. Rfd1 {[%clk 0:02:53]}  N7f6 {[%clk 0:02:56]} 13. Rac1 {[%clk 0:02:53]}  Rc8 {[%clk 0:02:55]} 14. Nxd5 {[%clk 0:02:53]}  Qxd5 {[%clk 0:02:55]} 15. Qb2 {[%clk 0:02:53]}  Rfd8 {[%clk 0:02:54]} 16. Rc4 {[%clk 0:02:53]}  Ba6 {[%clk 0:02:53]} 17. Ne5 {[%clk 0:02:49]}  Bxc4 {[%clk 0:02:27]} 18. Bxc4 {[%clk 0:02:45]}  Qe4 {[%clk 0:02:21]} 19. Nxf7 {[%clk 0:02:39]}  Re8 {[%clk 0:01:56]} 20. Ng5 {[%clk 0:02:36]}  Qf5 {[%clk 0:01:55]} 21. h4 {[%clk 0:02:26]}  e5 {[%clk 0:01:53]} 22. Nf7 {[%clk 0:02:14]}  b5 {[%clk 0:01:48]} 23. Nd6 {[%clk 0:02:14]}  Qh5 {[%clk 0:01:39]} 24. f3 {[%clk 0:01:10]}  bxc4 {[%clk 0:01:36]} 25. bxc4 {[%clk 0:01:10]}  Rb8 {[%clk 0:01:30]} 26. Nxe8+ {[%clk 0:01:10]}  Rxe8 {[%clk 0:01:31]} 27. Qb7+ {[%clk 0:01:08]}  Kh6 {[%clk 0:01:25]} 28. Qxa7 {[%clk 0:01:04]}  e4 {[%clk 0:01:23]} 29. Rf1 {[%clk 0:01:01]}  Qxh4 {[%clk 0:01:21]} 30. Qxc5 {[%clk 0:00:58]}  Qg3 {[%clk 0:01:16]} 31. Rf2 {[%clk 0:00:49]}  Re5 {[%clk 0:00:49]} 32. Qf8+ {[%clk 0:00:44]}  Kh5 {[%clk 0:00:46]} 33. Qxf6 {[%clk 0:00:43]}  Rf5 {[%clk 0:00:38]} 34. Qe7 {[%clk 0:00:39]}  exf3 {[%clk 0:00:33]} 35. Qxh7+ {[%clk 0:00:35]}  Kg5 {[%clk 0:00:33]} 36. d4 {[%clk 0:00:22]}  fxg2 {[%clk 0:00:08]} 37. Rxg2 {[%clk 0:00:22]} 1-0


[Site "https://www.chess.com"]

[Event "Titled Tuesday Blitz October 25 Late 2022"]
[White "Barbero Sendic, Alejandro"]
[Black "Makarian, Rudik"]
[WhiteFideId "3001288"]
[BlackFideId "44105681"]
[WhiteElo "2314"]
[BlackElo "2405"]
[Result "0-1"]
[Round "02"]
[TimeControl "180+1"]
[Date "2022.10.26"]
[WhiteClock "0:01:05"]
[BlackClock "0:01:45"]

1. d4 {[%clk 0:03:00]}  Nf6 {[%clk 0:03:00]} 2. Nc3 {[%clk 0:03:00]}  g6 {[%clk 0:03:01]} 3. e4 {[%clk 0:02:59]}  d6 {[%clk 0:03:02]} 4. Nf3 {[%clk 0:02:59]}  a6 {[%clk 0:03:01]} 5. a4 {[%clk 0:02:50]}  Bg7 {[%clk 0:03:01]} 6. Bd3 {[%clk 0:02:45]}  Bg4 {[%clk 0:03:00]} 7. h3 {[%clk 0:02:45]}  Bxf3 {[%clk 0:03:00]} 8. Qxf3 {[%clk 0:02:46]}  Nc6 {[%clk 0:02:58]} 9. Ne2 {[%clk 0:02:45]}  O-O {[%clk 0:02:56]} 10. c3 {[%clk 0:02:45]}  e5 {[%clk 0:02:56]} 11. d5 {[%clk 0:02:45]}  Ne7 {[%clk 0:02:55]} 12. O-O {[%clk 0:02:41]}  c6 {[%clk 0:02:50]} 13. c4 {[%clk 0:02:40]}  b5 {[%clk 0:02:39]} 14. dxc6 {[%clk 0:02:34]}  b4 {[%clk 0:02:25]} 15. Be3 {[%clk 0:02:23]}  Nxc6 {[%clk 0:02:26]} 16. c5 {[%clk 0:02:14]}  d5 {[%clk 0:02:16]} 17. exd5 {[%clk 0:02:14]}  Qxd5 {[%clk 0:02:17]} 18. Qxd5 {[%clk 0:02:13]}  Nxd5 {[%clk 0:02:18]} 19. Be4 {[%clk 0:02:14]}  Nxe3 {[%clk 0:02:11]} 20. Bxc6 {[%clk 0:02:13]}  Nxf1 {[%clk 0:02:11]} 21. Bxa8 {[%clk 0:02:13]}  Rxa8 {[%clk 0:02:11]} 22. Kxf1 {[%clk 0:02:13]}  e4 {[%clk 0:02:10]} 23. c6 {[%clk 0:02:03]}  Rc8 {[%clk 0:02:08]} 24. Rc1 {[%clk 0:02:03]}  Bxb2 {[%clk 0:02:08]} 25. Rc4 {[%clk 0:02:04]}  b3 {[%clk 0:02:03]} 26. Rxe4 {[%clk 0:01:55]}  Bf6 {[%clk 0:02:01]} 27. Rb4 {[%clk 0:01:34]}  b2 {[%clk 0:01:59]} 28. Ke1 {[%clk 0:01:27]}  Rxc6 {[%clk 0:01:59]} 29. Kd2 {[%clk 0:01:27]}  Kg7 {[%clk 0:01:58]} 30. g3 {[%clk 0:01:12]}  Rc4 {[%clk 0:01:58]} 31. Rb3 {[%clk 0:01:06]}  Rxa4 {[%clk 0:01:58]} 32. Nc3 {[%clk 0:01:07]}  Ra1 {[%clk 0:01:53]} 33. Rxb2 {[%clk 0:01:05]}  Ra3 {[%clk 0:01:45]} 0-1


[Site "https://www.chess.com"]